Cogmind - Beta 13 @@@ ROGUE MODE // 2024.04.22 @ 18:35:32 Player: H3-RMN Result: Destroyed by G-47 Trooper with Particle Gun Performance ------------- Evolutions (0) 0 Regions Visited (2) 400 Robots Destroyed (41) 205 Value Destroyed (747) 747 Prototype IDs (0) 0 Alien Tech Used (0) 0 Bonus (0) 0 TOTAL SCORE: 1352 Bonus ------- None Cogmind --------- Core Integrity 0/250 Matter 221/300 Energy 98/100 System Corruption 0% Temperature Cool (9) Movement Treading (320) Ox2 Location -10/Mines Parts ------- > --- POWER (1) -------- (None) > --- PROPULSION (2) --- Light Treads Compact Wheel > --- UTILITY (2) ------ High-capacity Storage Unit > --- WEAPON (2) ------- Light Assault Rifle Light Assault Rifle > --- INVENTORY (20) --- Ion Engine Light Ion Engine Light Treads Light Treads Light Treads Light Treads Wheel Small Matter Pod (50) Weight Redist. System Structural Scanner Sensor Array Signal Interpreter Transport Network Coupler Assault Rifle Heavy Assault Rifle Grenade Launcher Grenade Launcher Ripper Peak State ------------ > --- POWER ------------ Ion Engine > --- PROPULSION ------- Light Treads Compact Wheel > --- UTILITY ---------- Improved Heat Sink High-capacity Storage Unit > --- WEAPON ----------- Light Assault Rifle Heavy Assault Rifle > --- INVENTORY -------- Ion Engine Light Ion Engine Light Treads Light Treads Light Treads Wheel Small Storage Unit Small Matter Pod Weight Redist. System Structural Scanner Sensor Array Signal Interpreter Transport Network Coupler Assault Rifle Light Assault Rifle Light Assault Rifle Grenade Launcher Grenade Launcher Ripper [Rating: 12] Favorites ----------- Power Ion Engine Engine Ion Engine Propulsion Light Treads Treads Light Treads Leg Aluminum Leg Wheel Wheel Utility High-capacity Storage Unit Device Improved Heat Sink Storage High-capacity Storage Unit Protection Light Armor Plating Weapon Light Assault Rifle Energy Gun EM Pulse Gun Energy Cannon Beam Cannon Ballistic Gun Light Assault Rifle Launcher Grenade Launcher Build | -11 -10 -10 ------- Run | Yrd Mat Min Slots Evolved . | . . . Power . | . . . Propulsion . | . . . Utility . | . . . Weapon . | . . . Parts Attached 32 | 8 11 13 Power 6 | 2 2 2 Engine 6 | 2 2 2 Core . | . . . Reactor . | . . . Propulsion 7 | 2 3 2 Treads 2 | . 1 1 Leg 2 | 2 . . Wheel 3 | . 2 1 Hover . | . . . Flight . | . . . Utility 6 | 2 3 1 Device 3 | 1 2 . Storage 2 | 1 1 . Processor . | . . . Hackware . | . . . Protection 1 | . . 1 Artifact . | . . . Weapon 13 | 2 3 8 Energy Gun 2 | 1 1 . Energy Cannon 1 | . 1 . Ballistic Gun 8 | 1 1 6 Ballistic Cannon . | . . . Launcher 2 | . . 2 Special Weapon . | . . . Impact Weapon . | . . . Slashing Weapon . | . . . Piercing Weapon . | . . . Special Melee Weapon . | . . . Unidentified Prototypes . | . . . Parts Lost 9 | . 3 6 Power 2 | . . 2 Propulsion 2 | . 1 1 Utility 1 | . . 1 Weapon 4 | . 2 2 Highest Loss Streak 2 | . 1 2 To Critical Strikes . | . . . Average Slot Usage (%) 96 | . 98 91 Engine 13 | . 14 13 Treads 11 | . 10 14 Leg 5 | . 7 . Wheel 10 | . 9 13 Device 11 | . 13 5 Storage 14 | . 14 14 Energy Gun 2 | . 4 . Energy Cannon 7 | . 9 4 Ballistic Gun 16 | . 13 23 Naked Turns . | . . . Heaviest Build 52 | 14 50 52 Greatest Support 20 | 20 20 16 Greatest Overweight (x) 4 | . 4 4 Average Overweight (x) 2 | . 2 2 Largest Inventory Capacity 20 | 8 20 20 Average Capacity 16 | 7 16 20 Most Carried 20 | 5 20 20 Average Carried 13 | 2 12 19 Final Capacity 20 | 8 20 20 Final Carried 19 | 5 19 18 Class Distribution -------------------- 78% | Mutant 21% | Scavenger-Mutant Dominant Class ---------------- Mutant | -10/Materials Scavenger-Mutant | -10/Mines Resources | -11 -10 -10 ----------- Run | Yrd Mat Min Matter Collected 646 | 317 159 170 Remotely . | . . . Salvage Created 1213 | 145 658 410 Parts 98 | 12 54 32 Haulers Intercepted 2 | . 2 . Recyclers Shooed 2 | 1 . 1 Parts Field Recycled . | . . . Retrieved Matter . | . . . Parts Self-Destructed . | . . . Prevented . | . . . Kills | -11 -10 -10 ------- Run | Yrd Mat Min Combat Hostiles Destroyed 27 | . 16 11 Guns 13 | . 9 4 Cannons 8 | . 7 1 AOE 6 | . . 6 Classes Destroyed 9 | 3 5 1 Worker 5 | 2 . 3 Builder 3 | . 2 1 Tunneler 1 | 1 . . Hauler 2 | . 2 . Recycler 2 | 1 . 1 Watcher 1 | . 1 . Swarmer 12 | . 6 6 Grunt 13 | . 10 3 Sentry 2 | . . 2 Best Kill Streak 6 | 4 6 6 Combat Bots Only 6 | . 6 3 Max Kills in Single Turn 3 | 1 1 3 Gunslinging . | . . . Exploded 3 | . . 3 Melee . | . . . Uniques/NPCs Destroyed . | . . . Combat | -11 -10 -10 -------- Run | Yrd Mat Min Hostile Shots Fired 162 | . 84 78 Missed 46 | . 26 20 Damage Taken 1388 | . 550 838 Core 251 | . 114 137 Absorbed by Shields . | . . . Core Remaining (%) 100 | 100 . . Volleys Fired 109 | 10 56 43 Largest 2 | 2 2 2 Hottest 80 | 60 80 80 Shots Fired 203 | 20 104 79 Gun 161 | 20 71 70 Cannon 38 | . 33 5 Launcher 4 | . . 4 Special . | . . . Kinetic 136 | 10 56 70 Thermal 43 | . 38 5 Explosive 4 | . . 4 Electromagnetic 20 | 10 10 . Robot Hit Streak 12 | 4 7 12 Robot Miss Streak 4 | 2 4 2 Penetration Max . | . . . Secondary Targets 2 | . 1 1 Max Gunslinging Chain 1 | . 1 1 Shots Hit Robots 125 | 9 59 57 Core Hits 65 | 5 31 29 Critical Kills 1 | . 1 . Critical Parts Destroyed . | . . . Critical Strikes 1 | . 1 . Destroy 1 | . 1 . Melee Attacks . | . . . Impact . | . . . Slashing . | . . . Piercing . | . . . Sneak Attacks . | . . . Combat Hostiles . | . . . Follow-up Attacks . | . . . Damage Inflicted 1845 | 104 706 1035 Guns 946 | 104 330 512 Cannons 464 | . 376 88 Explosions 435 | . . 435 Melee . | . . . Ramming . | . . . Kinetic 812 | 36 264 512 Thermal 508 | . 420 88 Explosive 435 | . . 435 Electromagnetic 90 | 68 22 . Impact . | . . . Slashing . | . . . Piercing . | . . . Highest Corruption . | . . . Average Corruption . | . . . Corruption Purged . | . . . Corruption Blocked . | . . . Overload Shots . | . . . Overflow Damage 11 | . . 11 Projectiles . | . . . Explosions 11 | . . 11 Melee . | . . . Knockbacks . | . . . Impact . | . . . Kinetic . | . . . Secondary . | . . . Self-Inflicted Damage 55 | . . 55 Shots 3 | . . 3 Rammed . | . . . Targets Rammed . | . . . Kicked . | . . . Crushed . | . . . Highest Temperature 121 | 40 121 101 Average Temperature 33 | 15 28 49 Received Heat Transfer 573 | . 162 411 Siege Activations . | . . . Robots Corrupted . | . . . Combat Hostiles . | . . . Parts Fried . | . . . Impact Corruptions . | . . . Robots Melted . | . . . Combat Hostiles . | . . . Parts Melted 2 | . 2 . Heat Transferred 1062 | . 877 185 Parts Sabotaged . | . . . Parts Stolen . | . . . Parts Stripped . | . . . Power Chain Reactions . | . . . Alert | -11 -10 -10 ------- Run | Yrd Mat Min Peak Influence 376 | 20 242 376 Initial 90 | . 13 90 Average 143 | 5 131 218 Maximum Alert Level 1 | . 1 1 Low Security (%) 74 | 100 85 41 Level 1 25 | . 14 58 Level 2 . | . . . Level 3 . | . . . Level 4 . | . . . Level 5 . | . . . High Security . | . . . Max Security . | . . . Squads Dispatched 5 | . 5 . Investigation 5 | . 5 . Extermination . | . . . Reinforcement . | . . . Assault . | . . . Garrison . | . . . Intercept . | . . . Searches Triggered . | . . . Construction Impeded . | . . . Haulers Reinforced . | . . . Active Scanning Responses . | . . . Cargo Convoy Interrupts . | . . . Stealth | -11 -10 -10 --------- Run | Yrd Mat Min Distress Signals . | . . . Communications Jammed . | . . . Distress Signals . | . . . Times Spotted 35 | . 23 12 Peak Tracking Total 4 | . 4 3 Tactical Retreats 1 | . 1 . Traps | -11 -10 -10 ------- Run | Yrd Mat Min Traps Triggered 1 | . 1 . Indirectly . | . . . Trap Hack Attempts . | . . . Triggered . | . . . Disarmed . | . . . Reprogrammed . | . . . Reused . | . . . Traps Extracted . | . . . Installed . | . . . Triggered . | . . . Machines | -11 -10 -10 ---------- Run | Yrd Mat Min Machines Disabled 1 | . . 1 Max in Single Turn 1 | . . 1 Machines Repaired . | . . . Machines Dismantled . | . . . Machines Sabotaged . | . . . Overloaded Fab Kills . | . . . Hacking | -11 -10 -10 --------- Run | Yrd Mat Min Machines Accessed 7 | . 7 . Terminals 4 | . 4 . Fabricators . | . . . Repair Stations 1 | . 1 . Recycling Units 2 | . 2 . Scanalyzers . | . . . Garrison Access . | . . . Total Hacks 22 | . 22 . Successful 8 | . 8 . Failed 14 | . 14 . Catastrophic 3 | . 3 . Database Lockouts . | . . . Manual 11 | . 11 . Terminals 12 | . 12 . Fabricators . | . . . Repair Stations 3 | . 3 . Recycling Units 7 | . 7 . Scanalyzers . | . . . Garrison Access . | . . . Terminal Hacks 2 | . 2 . Part Schematic 1 | . 1 . Robot Analysis 1 | . 1 . Fabricator Hacks . | . . . Repair Station Hacks 1 | . 1 . Scan Component 1 | . 1 . Recycling Unit Hacks 3 | . 3 . Report Inventory 2 | . 2 . Retrieve Components 1 | . 1 . Scanalyzer . | . . . Garrison Access Hacks . | . . . Unauthorized Hacks 2 | . 2 . Terminals . | . . . Fabricators . | . . . Repair Stations . | . . . Recycling Units 2 | . 2 . Tunnel 2 | . 2 . Scanalyzers . | . . . Garrison Access . | . . . Data Cores Recovered . | . . . Used . | . . . Hacking Detections 6 | . 6 . Full Trace Events 5 | . 5 . Feedback Events . | . . . Feedback Blocked . | . . . Robot Schematics Acquired . | . . . Robots Built . | . . . Authchips . | . . . Time . | . . . Total Robot Build Rating . | . . . Part Schematics Acquired 1 | . 1 . Parts Built . | . . . Authchips . | . . . Time . | . . . Total Part Build Rating . | . . . Parts Repaired . | . . . Time . | . . . Parts Recycled . | . . . Recycled Matter . | . . . Retrieved Matter . | . . . Retrieved Components 9 | . 9 . Parts Scanalyzed . | . . . Part Schematics Acquired . | . . . Parts Damaged . | . . . Bothacking | -11 -10 -10 ------------ Run | Yrd Mat Min Used RIF Installer . | . . . Robots Hacked . | . . . Non-combat . | . . . Combat . | . . . Robot Hacks Applied . | . . . Relay Couplers Released . | . . . Fabnet Peak Effective % . | . . . Robots Rewired . | . . . Allies Hacked . | . . . Hacks Repelled . | . . . Allies | -11 -10 -10 -------- Run | Yrd Mat Min Total Allies . | . . . Largest Group . | . . . Highest-Rated Group . | . . . Highest-Rated Ally . | . . . Total Orders . | . . . Ally Attacks . | . . . Total Damage . | . . . Kills . | . . . Allies Corrupted . | . . . Allies Melted . | . . . Intel | -11 -10 -10 ------- Run | Yrd Mat Min Robot Analysis Total 1 | . 1 . Derelict Logs Recovered . | . . . Drone Launches . | . . . Drone Recoveries . | . . . Exploration | -11 -10 -10 ------------- Run | Yrd Mat Min Turns Passed 1631 | 146 1039 446 Spaces Moved 864 | 78 564 222 Core 4 | 4 . . Treads 13 | . 13 . Legs 235 | 74 161 . Wheels 612 | . 390 222 Hover . | . . . Flight . | . . . Fastest Speed 50 | 50 120 130 Average Speed 135 | 116 138 136 Slowest Speed 320 | 120 320 145 Overloaded Moves . | . . . Propulsion Burnouts . | . . . Robots Hopped . | . . . Cave-ins Triggered . | . . . Exploration Rate (%) 47 | 6 78 57 Regions Visited 2 Branch Regions 1 Pre-discovered Areas 2 | . 2 . Known Exits Taken . | . . . Unknown Exits Taken 2 | 1 1 . Scrap Searched . | . . . Spaces Dug 32 | . . 32 Terrain Destroyed 32 | . . 32 Melee . | . . . Projectile . | . . . AOE 32 | . . 32 Terrain Rammed . | . . . Walls Destroyed . | . . . Machines Disabled . | . . . Actions | -11 -10 -10 --------- Run | Yrd Mat Min Total 1139 | 111 731 297 Wait 95 | 12 71 12 Move 862 | 77 563 222 Hop . | . . . Pick Up 27 | 4 20 3 Fast Attach 12 | 7 4 1 Attach 7 | . 3 4 Detach . | . . . Swap 13 | 1 4 8 Drop 14 | . 10 4 Fire 109 | 10 56 43 Melee . | . . . Ram . | . . . Kick . | . . . Crush . | . . . Escape Stasis . | . . . Rewire . | . . . Trap . | . . . Miscellaneous . | . . . Route ------- -11/Scrapyard -10/Materials (discovered 4 exits: [*Mat x3] / [*Min]) -10/Mines (discovered 1 exit: [*Mat]) History --------- Turn | Location | Event 5 | -11/Scrapyard | Discovered new exit (range 16) 147 | -11/Scrapyard | Entered Materials 309 | -10/Materials | Build established: Mutant 601 | -10/Materials | Discovered new exit (range 5) 787 | -10/Materials | Discovered new exit (range 16) 991 | -10/Materials | Discovered new exit (range 8) 1166 | -10/Materials | Discovered new exit (range 12) 1186 | -10/Materials | Entered Mines 1225 | -10/Mines | Met a Derelict bent on vengeance 1263 | -10/Mines | A weapon hastily lodged in a ceiling crevice suddenly fell to the ground 1318 | -10/Mines | Core integrity fell below 50% 1519 | -10/Mines | Discovered new exit (range 5) 1621 | -10/Mines | Core integrity fell below 20% 1632 | -10/Mines | Destroyed by G-47 Trooper with Particle Gun Last Messages --------------- 01575_ Destroyed Flight Unit. 01575_ S-10 Pest destroyed. 01575_ U-05 Engineer builds a Wall. 01577_ Destroyed Welding Torch. 01577_ U-05 Engineer destroyed. 01577_ K-01 Serf cleans the Laser Drill. 01579_ The unstable cave ceiling collapses. 01579_ S-10 Pest destroyed. 01579_ Laser Drill disabled. 01579_ K-01 Serf destroyed. 01590_ Acquired 8 matter. 01616_ U-05 Engineer lays Concrete. 01616_ Hvy. Assault Rifle destroyed. 01617_ U-05 Engineer lays Concrete. 01621_ U-05 Engineer builds a Wall. 01624_ G-34 Mercenary destroyed. 01624_ Switching to secondary target: G-47 Trooper. 01624_ Lgt. Ion Engine destroyed. 01624_ U-05 Engineer builds a Wall. Map ----- +----------------------------------------------------+ | ##??????????????# #?????## #???????????? | | ##???????????????# ###??## ##??????????? | | ##?????????????#### #??# ##?????????? | | #?????????????## # #??# #?????????? | | #?????????????# #### #?????????? | | #?????????????# ## ##?????????? | | #??????????????# ###??????????? | | #????????????????### ###????????????? | | #??????????????????## ##??????????????? | | ???????????????????## ##???????????????? | | ??????????????????## ##????????????????? | | ?????????????????## #?????????????????? | | ?????????????????# #?????????????????? | | ????????????????## #????????? ???????? | | ????????????????# """ #????????? ??????? | | ?????? ?????????# """!##???????? #??????? | | ?????# ###### !%##??????? #??????? | | ??????# #?????? #??????? | | ??????# *= #?????#%g #??????? | | ?????? % ######## # #?#### * ##?????? | | ?????????????????## = ## ??????? | | ?????????????????# [[ # ???????? | | ?????????????????# = # ??????????? | | ?????????????????# # # #????????????? | | ?????????????????## =* # #?????????????? | | ?????????????????## @ #?????????????? | | ?????????????????# ## #?????????????? | | ?????????????????## ## ##?????????????? | | ??????????????????## ####??????????????? | | ???????????????????## #????????????????? | | ????????????????????# #????????????????? | | ????????????????????## ##????????????????? | | ??????????????????????###?????????????????? | | ??????????????????????????????????????????? | | ??????????????????????????????????????????? | | ??????????????????????????????????????????? | | ??????????????????????????????????????????? | | ??????????????????????????????????????????? | | ??????????????????????????????????????????? | | ??????????????????????????????????????????? | | ??????????????????????????????????????????? | | ??????????????????????????????????????????? | | ??????????????????????????????????????????? | | ??????????????????????????????????????????? | | ??????????????????????????????????????????? | | ??????????????????????????????????????????? | | ??????????????????????????????????????????? | | ??????????????????????????????????????????? | | ??????????????????????????????????????????? | | ??????????????????????????????????????????? | +----------------------------------------------------+ Best States ------------- Heat Dissipation 39 Energy Generation 10 Energy Capacity 250 Matter Stores 300 Matter Capacity 300 Sight Range 16 Terrain Scan Range 16 Terrain Scan Density 10 Armor Coverage 150 Evasion (%) 55 Recoil Reduction 1 Item Schematics ----------------- Huge Storage Unit | -10/Materials | Hacked Robot Schematics ------------------ None Fabricated ------------ Nothing Alien Tech Used ----------------- None Achievements -------------- None Challenges ------------ None Game ------ Seed ConcussiveGravityCharge Manual? 0 Play Time 00:16:49 Cumulative 14.5 hours Start 2024.04.22 @ 18:18:43 End 2024.04.22 @ 18:35:32 Sessions 1 Manual Loads 0 Difficulty Rogue Special Mode None Game No. 9 Rogue 9 Adventurer 0 Explorer 0 Win Type - Total 0 Types 0/0/0/0/0/0/0/0/0 Lore% 15 Gallery% 29 Achievement% 26 Wizard Run 0 Options --------- Layout 1 ASCII 0 Keyboard 0 Movement Mouse Keybinds 0 Fullscreen 2 Font 24/Terminus Map View 50x35 Zoom Use 0% Tactical HUD 1 Map Filters NONE Filters NONE Steam 0 RUN: 038656e4-678e-497a-8b6a-2901b92ae3ab